[Event "ECo-C Extraliga 2023-24"]
[Site "Slovakia"]
[Date "2024.02.24"]
[Round "7.3"]
[White "Krnan, Tomas"]
[Black "Sipos, Istvan"]
[Result "0-1"]
[ECO "C02"]
[WhiteElo "2435"]
[BlackElo "2457"]
[Annotator "TA"]
[PlyCount "154"]
[EventDate "2023.10.06"]
[EventType "team-tourn"]
[EventCountry "SVK"]
[SourceTitle "playchess.com"]
[Source "ChessBase"]
[SourceQuality "1"]
[TimeControl "40/5400+30:1800+30"]

{[%evp 37,154,0,0,-22,-26,-25,-25,-14,-21,-17,-22,-55,-56,-61,-60,-56,-56,-67,-50,-45,-47,-41,-52,-110,-133,-137,-132,-137,-137,-160,-127,-176,-150,-182,-182,-283,-179,-352,-352,-543,-200,-222,-216,-196,0,-133,0,-171,-171,-164,-151,-151,-151,-178,-151,-627,-627,-627,-626,-619,-619,-812,-619,-612,-605,-627,-613,-2501,-2330,-1166,-1073,-29969,-29971,-29971,-29972,-29971,-29972,-29974,-29973,-29977,-29972,-29972,-29973,-29973,-29974,-29973,-29973,-29973,-29974,-29974,-29973,-29973,-29969,-29973,-29969,-29969,-29971,-29971,-29972,-29972,-29970,-29969,-29970,-29970,-29972,-29972,-29971,-29970,-29972,-29972,-29973,-29970,-29969,-29969,-29970,-29974,-29974,-29973,-29970]} 1. e4 {[%emt 0:00:06]} e6 {[%emt 0:00:50]} 2. d4 {[%emt 0:00:19]} d5 {[%emt 0:00:05]} 3. e5 {[%emt 0:00:38]} c5 {[%emt 0:00:02]} 4. c3 {[%emt 0:00:12]} Nc6 {[%emt 0:00:05]} 5. Nf3 {[%emt 0:00:28]} Bd7 {[%emt 0:00:46]} 6. Bd3 {[%emt 0:07:14]} cxd4 {[%emt 0:07:28]} 7. O-O {[%emt 0:01:58]} dxc3 {[%emt 0:00:46]} 8. bxc3 {[%emt 0:00:23]} Rc8 {[%emt 0:04:21]} 9. Nbd2 {[%emt 0:05:37]} Nge7 {[%emt 0:09:19]} 10. Rb1 {[%emt 0:08:24]} Qc7 {[%emt 0:15:19]} 11. c4 {[%emt 0:14:56]} dxc4 {[%emt 0:04:48]} 12. Nxc4 {[%emt 0:06:12]} Nd5 {[%emt 0:00:07]} 13. Bb2 {[%emt 0:02:56]} b5 {[%emt 0:06:05]} 14. Nd6+ {[%emt 0:09:56]} Bxd6 {[%emt 0:00:06]} 15. exd6 {[%emt 0:00:03]} Qxd6 {[%emt 0:00:33]} 16. Ng5 {[%emt 0:06:23]} Qe7 {[%emt 0:12:53]} 17. h4 {[%emt 0:11:20]} h6 {[%emt 0:13:19]} 18. Bxg7 {[%emt 0:01:48]} Rg8 {[%emt 0:00:51]} 19. Bxh6 {[%emt 0:00:11]} Qf6 {[%emt 0:05:51]} 20. Qf3 {[%emt 0:03:09]} Ne5 {[%emt 0:00:05]} 21. Qxf6 {[%emt 0:01:00]} Nxf6 {[%emt 0:00:02]} 22. Bxb5 {[%emt 0:09:46]} Bxb5 {[%emt 0:02:45]} 23. Rxb5 {[%emt 0:00:06]} Neg4 {[%emt 0:00:05]} 24. Nxe6 {[%emt 0:04:20]} Nxh6 {[%emt 0:01:44]} 25. Ng5 {[%emt 0:00:29]} Kf8 {[%emt 0:00:36]} 26. Rb7 {[%emt 0:01:26]} Rc4 {[%emt 0:00:38]} 27. g3 {[%emt 0:01:21]} Ne4 {[%emt 0:03:48]} 28. Nxe4 {[%emt 0:01:47]} Rxe4 {[%emt 0:00:03]} 29. Rxa7 {[%emt 0:00:13]} Rg6 {[%emt 0:00:34]} (29... Rxh4 $2 30. Ra8+ Ke7 31. Rxg8 $18) 30. Kg2 {[%emt 0:02:05]} (30. Kh2 $15) 30... Rxh4 $17 {[%emt 0:01:23]} 31. Rd1 {[%emt 0:00:37]} Rb4 {[%emt 0:00:33]} 32. Rd3 {[%emt 0:00:35]} Kg7 {[%emt 0:06:00]} 33. Rf3 {[%emt 0:00:13]} Re6 {[%emt 0:00:59]} 34. Ra5 {[%emt 0:00:33]} (34. Rf4 $17 Rxf4 35. gxf4) 34... Kg6 {[%emt 0:00:15]} 35. Ra8 {[%emt 0:00:38]} Rb2 {[%emt 0:00:51]} 36. a3 {[%emt 0:00:24]} (36. a4 $142) 36... Ra2 {[%emt 0:01:29]} 37. Ra4 $2 {[%emt 0:00:30]} (37. Rf4) 37... f5 $19 {[%emt 0:01:17]} 38. Ra8 {[%emt 0:00:38]} (38. g4 $142 Nxg4 39. Ra5) 38... Ree2 $2 {[%emt 0:00:30]} (38... Ng4 39. Rg8+ Kh7) 39. Ra6+ $19 {[%emt 0:00:12]} Kg5 {[%emt 0:00:05]} 40. Ra5 {[%emt 0:00:24]} Kg6 {[%emt 0:01:22]} ({Black should play} 40... Red2 $19 41. Rf4 Rd6) 41. Ra6+ $1 $17 {[%emt 0:03:40]} Kg5 {[%emt 0:01:31]} 42. Ra5 $1 {[%emt 0:00:10]} Re4 {[%emt 0:00:42]} 43. Kh3 {[%emt 0:03:54]} Ra1 {[%emt 0:13:04]} 44. Rb3 {[%emt 0:08:24]} Re6 {[%emt 0:03:04]} 45. Rb4 {[%emt 0:05:46]} Kg6 {[%emt 0:02:59]} 46. Kg2 $2 {[%emt 0:09:21] [#]} (46. Rb2 $17) 46... Ra2 $1 $19 {[%emt 0:00:21]} 47. Rf4 {[%emt 0:02:11]} Ng4 {[%emt 0:00:56]} 48. Kf1 {[%emt 0:00:25]} Rd6 {[%emt 0:01:41]} 49. Ra8 {[%emt 0:00:59]} Rdd2 {[%emt 0:03:15]} 50. Rg8+ {[%emt 0:00:34]} Kh7 {[%emt 0:00:08]} 51. Rg5 {[%emt 0:00:27]} Kh6 {[%emt 0:01:09]} 52. Rg8 {[%emt 0:00:32]} Rxf2+ {[%emt 0:00:18]} (52... Nxf2 53. Rh4#) 53. Rxf2 {[%emt 0:00:04]} Rxf2+ {[%emt 0:00:05]} (53... Nxf2 54. Rh8+ Kg6 55. Rh2 $11) 54. Kg1 {[%emt 0:00:29]} Rf3 {[%emt 0:00:29]} 55. Kg2 {[%emt 0:00:04]} Rxa3 {[%emt 0:00:08]} 56. Rh8+ {[%emt 0:01:20]} Kg7 {[%emt 0:00:06]} 57. Rb8 {[%emt 0:00:25]} Ra2+ {[%emt 0:00:16]} 58. Kg1 {[%emt 0:00:08]} Nf6 {[%emt 0:00:09]} 59. Rb7+ {[%emt 0:00:42]} Kg6 {[%emt 0:00:05]} 60. Rb8 {[%emt 0:00:18]} Kg5 {[%emt 0:00:49]} 61. Rf8 {[%emt 0:00:11]} Rd2 {[%emt 0:00:49]} 62. Kf1 {[%emt 0:00:28]} Ne4 {[%emt 0:00:29]} 63. Rg8+ {[%emt 0:00:07]} Kh5 {[%emt 0:00:13]} 64. Kg1 {[%emt 0:00:32]} Ng5 {[%emt 0:00:16]} 65. Kf1 {[%emt 0:00:39]} Kg4 {[%emt 0:00:07]} 66. Kg1 {[%emt 0:00:29]} Rd3 {[%emt 0:03:53]} 67. Kh2 {[%emt 0:00:05]} Re3 {[%emt 0:00:43]} ({And not} 67... Rxg3 68. Rxg5+ Kxg5 69. Kxg3 $11) 68. Rg7 {[%emt 0:00:42]} Re2+ {[%emt 0:01:29]} ({Not} 68... Rxg3 69. Rxg5+ Kxg5 70. Kxg3 $11) 69. Kg1 {[%emt 0:00:08]} Kh5 {[%emt 0:00:04]} 70. Rg8 {[%emt 0:01:02]} Ne4 {[%emt 0:00:51]} 71. Kf1 {[%emt 0:01:18]} Rf2+ {[%emt 0:00:10]} 72. Kg1 {[%emt 0:00:12]} Rd2 {[%emt 0:00:15]} 73. Rg7 {[%emt 0:00:52]} Kh6 {[%emt 0:00:22]} 74. Rg8 {[%emt 0:00:06]} Kh7 {[%emt 0:00:10]} 75. Rf8 {[%emt 0:00:27]} Kg6 {[%emt 0:01:12]} ({Stronger than} 75... Nxg3 76. Rh8+ Kg7 77. Rg8+ Kf6 78. Rxg3 $15) 76. Rg8+ {[%emt 0:01:08]} Kf7 {[%emt 0:00:09]} 77. Rb8 {[%emt 0:00:36]} Rd3 {[%emt 0:00:07]} 0-1

[Event "ECo-C Extraliga 2023-24"]
[Site "Slovakia"]
[Date "2024.02.24"]
[Round "7.3"]
[White "Bochnicka, Vladimir"]
[Black "Havlicek, Libor"]
[Result "1-0"]
[ECO "B52"]
[WhiteElo "2398"]
[BlackElo "2295"]
[Annotator "RC"]
[PlyCount "67"]
[EventDate "2023.10.06"]
[EventType "team-tourn"]
[EventCountry "SVK"]
[SourceTitle "playchess.com"]
[Source "ChessBase"]
[SourceQuality "1"]
[TimeControl "40/5400+30:1800+30"]

1. e4 {[%emt 0:00:03]} c5 {[%emt 0:01:35]} 2. Nf3 {[%emt 0:00:08]} d6 {[%emt 0:01:35]} 3. Bb5+ {[%emt 0:00:16]} Bd7 {[%emt 0:00:54]} 4. Bxd7+ {[%emt 0:00:15]} Nxd7 {[%emt 0:01:11]} 5. O-O {[%emt 0:00:40]} Ngf6 {[%emt 0:01:12]} 6. Qe2 {[%emt 0:00:27]} e6 {[%emt 0:00:40]} 7. b3 {[%emt 0:00:33]} Be7 {[%emt 0:00:40]} 8. Bb2 {[%emt 0:00:15]} O-O {[%emt 0:00:08]} 9. c4 {[%emt 0:00:14]} e5 {[%emt 0:05:39]} 10. Nc3 {[%emt 0:00:37]} Nh5 {[%emt 0:02:03]} 11. g3 {[%emt 0:07:38]} g6 {[%emt 0:01:06]} 12. Ne1 {[%emt 0:00:36]} Bg5 {[%emt 0:11:09]} 13. Ng2 {[%emt 0:06:47]} Bh6 {[%emt 0:08:11]} 14. Qd3 {[%emt 0:06:50]} Nb8 {[%emt 0:17:43]} 15. Nb5 {[%emt 0:10:25]} Nc6 {[%emt 0:00:07]} 16. Qxd6 {[%emt 0:06:12]} a6 {[%emt 0:01:30]} 17. Qxd8 {[%emt 0:00:20]} Raxd8 {[%emt 0:00:10]} 18. Nc3 {[%emt 0:01:04]} Nf6 19. f4 {[%emt 0:15:35]} Bg7 {[%emt 0:23:56]} 20. Rad1 {[%emt 0:11:58]} exf4 {[%emt 0:01:59]} 21. Rxf4 {[%emt 0:03:19]} Rfe8 {[%emt 0:02:22]} 22. d3 {[%emt 0:05:25]} Nb4 {[%emt 0:04:24]} 23. Na4 {[%emt 0:10:33]} Nh5 {[%emt 0:06:53]} 24. Rf3 {[%emt 0:05:16]} Bxb2 {[%emt 0:01:24]} 25. Nxb2 {[%emt 0:00:03]} Nxa2 {[%emt 0:00:17]} 26. Rdf1 {[%emt 0:00:06]} Nb4 27. Rxf7 {[%emt 0:04:28]} Nxd3 {[%emt 0:03:23]} 28. Nxd3 {[%emt 0:00:03]} Rxd3 {[%emt 0:00:08]} 29. g4 {[%emt 0:00:22]} Ng7 {[%emt 0:00:43]} 30. Rxb7 {[%emt 0:01:47]} Rxe4 {[%emt 0:00:06]} 31. Nf4 {[%emt 0:01:24]} Rd2 {[%emt 0:00:15]} 32. Nd5 {[%emt 0:00:34]} Ne8 {[%emt 0:00:58]} 33. Ne7+ {[%emt 0:00:47]} Kh8 {[%emt 0:00:22]} 34. Nxg6+ {[%emt 0:00:07]} 1-0

[Event "ECo-C Extraliga 2023-24"]
[Site "Slovakia"]
[Date "2024.02.24"]
[Round "7.3"]
[White "Mrva, Martin"]
[Black "Lecky, Juraj"]
[Result "1/2-1/2"]
[ECO "B90"]
[WhiteElo "2363"]
[BlackElo "2121"]
[Annotator "ChessBase"]
[PlyCount "84"]
[EventDate "2023.10.06"]
[EventType "team-tourn"]
[EventCountry "SVK"]
[SourceTitle "playchess.com"]
[Source "ChessBase"]
[SourceQuality "1"]
[TimeControl "40/5400+30:1800+30"]

1. e4 {[%emt 0:00:03]} c5 {[%emt 0:00:04]} 2. Nf3 {[%emt 0:00:09]} d6 {[%emt 0:00:04]} 3. d4 {[%emt 0:00:06]} cxd4 {[%emt 0:00:05]} 4. Nxd4 {[%emt 0:00:06]} Nf6 {[%emt 0:00:11]} 5. Nc3 {[%emt 0:00:09]} a6 {[%emt 0:00:05]} 6. h3 {[%emt 0:00:52]} e5 {[%emt 0:00:05]} 7. Nf3 {[%emt 0:01:10]} Be7 {[%emt 0:04:27]} 8. Nh2 {[%emt 0:02:18]} b5 {[%emt 0:08:25]} 9. Ng4 {[%emt 0:03:29]} Nbd7 {[%emt 0:01:34]} 10. Ne3 {[%emt 0:17:07]} Nb6 {[%emt 0:08:55]} 11. a4 {[%emt 0:03:09]} bxa4 {[%emt 0:14:35]} 12. Bd3 {[%emt 0:06:36]} O-O {[%emt 0:16:19]} 13. O-O {[%emt 0:03:06]} Bb7 {[%emt 0:02:31]} 14. Qf3 {[%emt 0:03:13]} g6 {[%emt 0:05:05]} 15. Nxa4 {[%emt 0:04:06]} Nxa4 {[%emt 0:02:36]} 16. Rxa4 {[%emt 0:00:07]} a5 {[%emt 0:00:24]} 17. b3 {[%emt 0:13:22]} Bc6 {[%emt 0:03:17]} 18. Ra2 {[%emt 0:01:42]} Qc7 {[%emt 0:06:55]} 19. Nd5 {[%emt 0:05:33]} Nxd5 {[%emt 0:01:29]} 20. exd5 {[%emt 0:00:05]} Bd7 {[%emt 0:00:07]} 21. Bd2 {[%emt 0:06:42]} f5 {[%emt 0:03:09]} 22. Qe2 {[%emt 0:00:14]} Bf6 {[%emt 0:07:51]} 23. Qe1 {[%emt 0:05:57]} a4 {[%emt 0:00:52]} 24. b4 {[%emt 0:00:05]} e4 {[%emt 0:00:37]} 25. Be2 {[%emt 0:00:00]} Be5 {[%emt 0:01:38]} 26. c4 f4 27. f3 {[%emt 0:02:58]} e3 {[%emt 0:06:54]} 28. Bc3 {[%emt 0:00:30]} Rf5 {[%emt 0:01:20]} 29. b5 {[%emt 0:00:54]} Bxc3 {[%emt 0:00:35]} 30. Qxc3 {[%emt 0:00:06]} Bxb5 {[%emt 0:00:35]} 31. Rb1 {[%emt 0:02:45]} Bd7 {[%emt 0:01:00]} 32. Qd4 {[%emt 0:00:49]} Rff8 {[%emt 0:01:58]} 33. Kh2 {[%emt 0:01:00]} Rab8 {[%emt 0:01:37]} 34. Rxb8 {[%emt 0:00:21]} Qxb8 {[%emt 0:00:06]} 35. Rb2 {[%emt 0:00:14]} Qc7 {[%emt 0:00:47]} 36. Qc3 {[%emt 0:00:49]} Bc8 {[%emt 0:01:01]} 37. Rb5 {[%emt 0:01:04]} Qe7 {[%emt 0:00:28]} 38. Ra5 {[%emt 0:00:56]} Qh4 {[%emt 0:01:06]} 39. Ra7 {[%emt 0:01:58]} Rf7 {[%emt 0:00:10]} 40. Ra8 {[%emt 0:00:13]} Rf8 {[%emt 0:00:05]} 41. Ra7 {[%emt 0:37:51]} Rf7 {[%emt 0:30:59]} 42. Ra8 {[%emt 0:01:04]} Rf8 1/2-1/2

[Event "ECo-C Extraliga 2023-24"]
[Site "Slovakia"]
[Date "2024.02.24"]
[Round "7.3"]
[White "Roubalik, Jakub"]
[Black "Chovan, Milan"]
[Result "1-0"]
[ECO "D87"]
[WhiteElo "2351"]
[BlackElo "2349"]
[Annotator "ChessBase"]
[PlyCount "59"]
[EventDate "2023.10.06"]
[EventType "team-tourn"]
[EventCountry "SVK"]
[SourceTitle "playchess.com"]
[Source "ChessBase"]
[SourceQuality "1"]
[TimeControl "40/5400+30:1800+30"]

1. d4 {[%emt 0:00:03]} Nf6 {[%emt 0:00:08]} 2. c4 {[%emt 0:00:09]} g6 {[%emt 0:00:06]} 3. Nc3 {[%emt 0:00:09]} d5 {[%emt 0:00:06]} 4. cxd5 {[%emt 0:00:10]} Nxd5 {[%emt 0:00:07]} 5. e4 {[%emt 0:00:14]} Nxc3 {[%emt 0:00:10]} 6. bxc3 {[%emt 0:00:02]} Bg7 {[%emt 0:00:13]} 7. Bc4 {[%emt 0:00:24]} c5 {[%emt 0:00:07]} 8. Ne2 {[%emt 0:00:17]} Nc6 {[%emt 0:00:11]} 9. Be3 {[%emt 0:00:19]} O-O {[%emt 0:00:12]} 10. O-O {[%emt 0:00:13]} Bg4 {[%emt 0:00:15]} 11. f3 {[%emt 0:00:10]} Na5 {[%emt 0:00:08]} 12. Bxf7+ {[%emt 0:12:04]} Rxf7 {[%emt 0:00:46]} 13. fxg4 {[%emt 0:00:04]} Rxf1+ {[%emt 0:00:07]} 14. Kxf1 {[%emt 0:00:12]} Qd6 {[%emt 0:02:18]} 15. e5 {[%emt 0:05:57]} Qd5 {[%emt 0:02:00]} 16. Kg1 {[%emt 0:25:31]} Nc4 {[%emt 0:05:15]} 17. Bf2 {[%emt 0:01:22]} Rf8 {[%emt 0:00:37]} 18. Qb3 {[%emt 0:11:15]} Bh6 {[%emt 0:17:21]} 19. h3 {[%emt 0:07:29]} b5 {[%emt 0:15:11]} 20. Rd1 {[%emt 0:14:02]} Qe4 {[%emt 0:15:19]} 21. Ng3 {[%emt 0:02:02]} Qf4 {[%emt 0:00:46]} 22. Nh1 {[%emt 0:00:56]} Kg7 {[%emt 0:05:41]} 23. Qxb5 {[%emt 0:01:18]} Ne3 {[%emt 0:00:58]} 24. Rb1 {[%emt 0:00:58]} cxd4 {[%emt 0:03:44]} 25. cxd4 {[%emt 0:00:52]} Qxd4 {[%emt 0:01:06]} 26. Qb7 {[%emt 0:05:54]} Qxe5 {[%emt 0:01:13]} 27. Re1 {[%emt 0:00:13]} Rd8 {[%emt 0:28:07]} 28. Qb3 {[%emt 0:04:03]} Qe4 {[%emt 0:01:35]} 29. Bxe3 {[%emt 0:00:51]} Bxe3+ {[%emt 0:00:37]} 30. Qxe3 {[%emt 0:00:23]} 1-0

[Event "ECo-C Extraliga 2023-24"]
[Site "Slovakia"]
[Date "2024.02.24"]
[Round "7.4"]
[White "Horvath, Jozsef"]
[Black "Lewtak, Damian"]
[Result "0-1"]
[ECO "A05"]
[WhiteElo "2411"]
[BlackElo "2337"]
[Annotator "ChessBase"]
[PlyCount "74"]
[EventDate "2023.10.06"]
[EventType "team-tourn"]
[EventCountry "SVK"]
[SourceTitle "playchess.com"]
[Source "ChessBase"]
[SourceQuality "1"]
[TimeControl "40/5400+30:1800+30"]

1. Nf3 {[%emt 0:00:07]} Nf6 {[%emt 0:00:06]} 2. g3 {[%emt 0:00:15]} b6 {[%emt 0:01:27]} 3. Bg2 {[%emt 0:00:15]} Bb7 {[%emt 0:00:06]} 4. b3 {[%emt 0:00:43]} e6 {[%emt 0:02:24]} 5. Bb2 {[%emt 0:00:12]} Be7 {[%emt 0:00:11]} 6. c4 {[%emt 0:00:48]} O-O {[%emt 0:04:09]} 7. O-O {[%emt 0:00:38]} d6 {[%emt 0:06:23]} 8. d4 {[%emt 0:07:13]} c5 {[%emt 0:01:34]} 9. e3 {[%emt 0:23:03]} Qc7 {[%emt 0:04:22]} 10. Nc3 {[%emt 0:02:21]} Ne4 {[%emt 0:05:44]} 11. Ne2 {[%emt 0:10:26]} Nd7 {[%emt 0:02:33]} 12. Nf4 {[%emt 0:01:22]} Ng5 {[%emt 0:09:38]} 13. Nxg5 {[%emt 0:11:28]} Bxg5 {[%emt 0:01:06]} 14. d5 {[%emt 0:00:11]} e5 {[%emt 0:13:55]} 15. Nd3 {[%emt 0:01:08]} Rae8 {[%emt 0:05:02]} 16. e4 {[%emt 0:04:19]} Qd8 {[%emt 0:04:26]} 17. f4 {[%emt 0:05:43]} exf4 {[%emt 0:04:54]} 18. gxf4 {[%emt 0:00:13]} Bf6 {[%emt 0:00:13]} 19. Qd2 {[%emt 0:01:43]} b5 {[%emt 0:09:35]} 20. cxb5 {[%emt 0:11:34]} Qb6 {[%emt 0:03:00]} 21. Kh1 {[%emt 0:06:27]} Qxb5 {[%emt 0:03:14]} 22. Rae1 {[%emt 0:00:24]} c4 {[%emt 0:08:55]} 23. bxc4 {[%emt 0:04:51]} Qxc4 {[%emt 0:00:06]} 24. Rc1 {[%emt 0:03:04]} Qa4 {[%emt 0:03:36]} 25. Rfe1 {[%emt 0:01:50]} Ba6 {[%emt 0:01:09]} 26. Bxf6 {[%emt 0:01:00]} Nxf6 {[%emt 0:00:50]} 27. Nb4 {[%emt 0:00:17]} Qa5 {[%emt 0:01:59]} 28. Qd4 {[%emt 0:00:34]} Bc8 {[%emt 0:01:24]} 29. e5 {[%emt 0:01:18]} Ng4 {[%emt 0:00:08]} 30. exd6 {[%emt 0:01:01]} Qd8 {[%emt 0:00:21]} 31. h3 {[%emt 0:00:43]} Qh4 {[%emt 0:02:27]} 32. Nd3 {[%emt 0:00:37]} Bf5 {[%emt 0:00:08]} 33. Rxe8 {[%emt 0:00:36]} Rxe8 {[%emt 0:00:28]} 34. d7 {[%emt 0:00:17]} Bxd7 {[%emt 0:00:43]} 35. Kg1 {[%emt 0:00:46]} Ne3 {[%emt 0:00:20]} 36. Ne5 {[%emt 0:00:17]} Qg3 {[%emt 0:00:38]} 37. Qd2 {[%emt 0:00:37]} Nxg2 {[%emt 0:00:15]} 0-1

[Event "ECo-C Extraliga 2023-24"]
[Site "Slovakia"]
[Date "2024.02.24"]
[Round "7.4"]
[White "Borhy, Marcell"]
[Black "Stohl, Igor"]
[Result "1/2-1/2"]
[ECO "E01"]
[WhiteElo "2385"]
[BlackElo "2424"]
[Annotator "RC"]
[PlyCount "26"]
[EventDate "2023.10.06"]
[EventType "team-tourn"]
[EventCountry "SVK"]
[SourceTitle "playchess.com"]
[Source "ChessBase"]
[SourceQuality "1"]
[TimeControl "40/5400+30:1800+30"]

1. d4 {[%emt 0:00:06]} Nf6 {[%emt 0:01:02]} 2. c4 {[%emt 0:00:08]} e6 {[%emt 0:00:32]} 3. g3 {[%emt 0:00:05]} d5 {[%emt 0:00:17]} 4. Bg2 {[%emt 0:00:15]} Bb4+ {[%emt 0:00:09]} 5. Bd2 {[%emt 0:00:07]} Bd6 {[%emt 0:00:09]} 6. Nf3 {[%emt 0:00:27]} O-O {[%emt 0:01:17]} 7. O-O {[%emt 0:01:13]} c6 {[%emt 0:00:40]} 8. Qc2 {[%emt 0:09:29]} Nbd7 {[%emt 0:02:42]} 9. Bg5 {[%emt 0:03:21]} h6 {[%emt 0:01:57]} 10. Bxf6 {[%emt 0:00:16]} Nxf6 {[%emt 0:00:18]} 11. Nbd2 {[%emt 0:00:05]} b6 {[%emt 0:00:19]} 12. e4 {[%emt 0:00:06]} Be7 {[%emt 0:00:44]} 13. e5 {[%emt 0:00:22]} Nd7 {[%emt 0:00:51]} 1/2-1/2

[Event "ECo-C Extraliga 2023-24"]
[Site "Slovakia"]
[Date "2024.02.24"]
[Round "7.4"]
[White "Briestensky, Rastislav"]
[Black "Babula, Vlastimil"]
[Result "0-1"]
[ECO "B51"]
[WhiteElo "2290"]
[BlackElo "2535"]
[Annotator "TA"]
[PlyCount "78"]
[EventDate "2023.10.06"]
[EventType "team-tourn"]
[EventCountry "SVK"]
[SourceTitle "playchess.com"]
[Source "ChessBase"]
[SourceQuality "1"]
[TimeControl "40/5400+30:1800+30"]

{[%evp 16,78,32,0,5,22,32,37,40,43,49,41,41,18,40,35,33,0,34,31,22,-28,0,0,18,0,0,-43,-16,-19,-4,0,0,-113,-87,-141,-79,-73,-70,-212,-217,-239,-223,-226,-82,-178,-43,-58,-43,-87,-74,-163,-147,-524,-433,-488,-472,-631,-523,-525,-509,-456,-314,-563,-423]} 1. e4 {[%emt 0:00:05]} c5 {[%emt 0:00:13]} 2. Nf3 {[%emt 0:00:11]} d6 {[%emt 0:00:10]} 3. Bb5+ {[%emt 0:00:19]} Nd7 {[%emt 0:00:35]} 4. O-O {[%emt 0:00:21]} Ngf6 {[%emt 0:00:08]} 5. Re1 {[%emt 0:00:07]} a6 {[%emt 0:00:57]} 6. Bf1 {[%emt 0:00:07]} b6 {[%emt 0:02:33]} 7. d4 {[%emt 0:04:18]} cxd4 {[%emt 0:00:33]} 8. Nxd4 {[%emt 0:01:12]} Bb7 {[%emt 0:02:04]} 9. f3 {[%emt 0:01:16]} e6 {[%emt 0:09:46]} 10. c4 {[%emt 0:01:42]} Rc8 {[%emt 0:00:09]} 11. Nc3 {[%emt 0:00:10]} Be7 {[%emt 0:06:07] White is slightly better.} 12. Be3 {[%emt 0:00:54]} O-O {[%emt 0:02:16]} 13. Rc1 {[%emt 0:01:24]} Re8 {[%emt 0:01:29]} 14. Kh1 {[%emt 0:03:35]} Kh8 {[%emt 0:06:20]} 15. Bg1 {[%emt 0:06:38]} g5 {[%emt 0:01:34]} 16. Nc2 {[%emt 0:00:49]} Ne5 {[%emt 0:06:23]} 17. Ne3 {[%emt 0:06:36]} Rg8 {[%emt 0:01:52]} 18. h3 {[%emt 0:07:39]} (18. b3 $142) 18... Qf8 {[%emt 0:08:54]} 19. Bh2 {[%emt 0:05:53]} Nfd7 {[%emt 0:04:31]} 20. Qd2 {[%emt 0:11:51]} h5 {[%emt 0:04:37]} 21. Qf2 {[%emt 0:09:31]} Rg6 {[%emt 0:01:32]} 22. Rcd1 {[%emt 0:01:43]} Qg7 {[%emt 0:03:00]} 23. Be2 {[%emt 0:01:03]} Rg8 {[%emt 0:01:42]} 24. g4 {[%emt 0:06:54]} (24. Rf1 $11) 24... Rh6 $17 {[%emt 0:05:37][%cal Bg6h6,Bh6h5,Bh5e5][%mdl 32]} 25. gxh5 {[%emt 0:02:18]} (25. Ncd5 $142 exd5 26. Nf5) 25... Qh7 {[%emt 0:04:23]} (25... Rxh5 $142 {Hoping for ...Qh7.} 26. f4 Rxh3 27. fxe5 Nxe5) 26. Ng4 {[%emt 0:07:20]} Rxh5 {[%emt 0:01:36]} 27. Nxe5 {[%emt 0:02:09]} (27. Bf1 $15) 27... Nxe5 $19 {[%emt 0:00:08]} 28. Bf1 {[%emt 0:03:35][%cal Oc4c5] [#]} (28. Bxe5+ dxe5 29. Kg2 f5 (29... Rxh3 30. Rh1 $17)) 28... g4 $1 {[%emt 0:02:47][%mdl 512]} 29. fxg4 {[%emt 0:06:53]} Rxg4 {[%emt 0:00:52]} (29... Nxg4 $19 30. hxg4 Rxg4) 30. Re3 {[%emt 0:03:30]} (30. hxg4 $2 Nxg4 31. Qg3 Rxh2+ (31... Nxh2 $2 32. Kg1 $19) 32. Kg1 Bh4 33. Qxh2 Nxh2 $19) (30. Re2 $17 {was the only chance.} Bxe4+ (30... Bh4 31. Qxb6 Bg3 32. Qe3 $15) 31. Nxe4 Rxe4 32. Rxe4 Qxe4+ 33. Bg2) 30... Rgh4 {[%emt 0:03:12]} (30... Bxe4+ 31. Nxe4 Rxe4 32. Rc3 $17) (30... Bh4 $19 31. Qc2 Bg5 32. hxg4 Nxg4) 31. Bxe5+ $1 $15 {[%emt 0:02:46]} Rxe5 {[%emt 0:00:45]} ({Much worse is} 31... dxe5 32. Rd7 Rf4 (32... Bxe4+ $2 {is the wrong capture.} 33. Nxe4 Rxe4 34. Rxe7 $18) 33. Qe2 $11) 32. Bg2 f5 $36 {[%emt 0:01:50][%mdl 2048] Keeping White busy.} 33. Kg1 {[%emt 0:02:04]} (33. Rg3 $17 {might work better.}) 33... fxe4 $19 {[%emt 0:03:00] [#] Strongly threatening ...Rf5.} ({Resist} 33... Bxe4 34. Nxe4 fxe4 35. Rg3 $15) 34. Na4 $2 {[%emt 0:01:17][%mdl 8192]} (34. Rg3 $17 {is tougher.} e3 35. Qe2 Bxg2 36. Kxg2) 34... b5 {[%emt 0:01:46]} 35. cxb5 {[%emt 0:00:06]} axb5 {[%emt 0:00:04]} 36. Nb6 {[%emt 0:00:46]} d5 {[%emt 0:00:55] ...Rf5 would now be deadly.} 37. Nd7 {[%emt 0:00:05]} Rf5 {[%emt 0:00:15]} 38. Qg3 {[%emt 0:00:02]} Qg8 {[%emt 0:01:15]} 39. Qe1 $2 {[%emt 0:02:01]} (39. b4) 39... Qc8 {[%emt 0:01:40] Weighted Error Value: White=0.58/Black=0.40.  Loses game:     	White=1     	---        Mistake:       	White=7     	Black=3      Inaccurate:     	White=4     	Black=4      OK:         	White=7     	Black=8      Best:        	White=2     	Black=1      Strong:       	White=1     	---} 0-1